bitfinex-derivatives/quotes_BNBF0:USTF0_20250630
["timestamp","ask_amount","ask_price","bid_price","bid_amount"]
[1751303974442,0.26422587,659.09,658.37,1.12383483]
[1751303974738,0.26422587,659.09,658.38,1.12383483]
[1751303974940,0.26422587,659.09,658.39,1.12383483]
[1751303975140,0.26422587,659.09,658.36,2.645]
[1751303975437,0.26422587,659.09,658.37,1.1238479]
[1751303975637,0.26422587,659.09,658.38,1.1238479]
[1751303975837,0.26422587,659.09,658.39,1.1238479]
[1751303976136,0.26422587,659.09,658.36,2.645]
[1751303976340,0.26422587,659.09,658.37,1.12382397]
[1751303976537,0.26422587,659.09,658.38,1.12382397]
[1751303976738,0.26422587,659.09,658.39,1.12382397]
[1751303976937,0.26422587,659.09,658.39,1.878]
[1751303979140,0.26422587,659.09,658.4,1.12363351]
[1751303979339,0.26422587,659.09,658.39,1.878]
[1751303989250,0.26422587,659.09,658.4,1.12362383]
[1751303989450,0.26422587,659.09,658.41,1.12362383]
[1751303989651,0.26422587,659.09,658.42,1.12362383]
[1751303989948,0.26422587,659.09,658.43,1.12362383]
[1751303990146,0.26422587,659.09,658.44,1.12362383]
[1751303990350,0.26422587,659.09,658.45,1.12362383]
[1751303990552,0.26422587,659.09,658.46,1.12362383]
[1751303990750,0.26422587,659.09,658.47,1.12362383]
[1751303990948,0.26422587,659.09,658.39,1.878]
[1751303991148,0.26422587,659.09,658.4,1.12375048]
[1751303991347,0.26422587,659.09,658.41,1.12375048]
[1751303991548,0.26422587,659.09,658.42,1.12375048]
[1751303991748,0.26422587,659.09,658.43,1.12375048]
[1751303991953,0.26422587,659.09,658.44,1.12375048]
[1751303992154,0.26422587,659.09,658.45,1.12375048]
[1751303992349,0.26422587,659.09,658.46,1.12375048]
[1751303992552,0.26422587,659.09,658.47,1.12375048]
[1751303992752,0.26422587,659.09,658.39,1.878]
[1751303993154,0.26422587,659.09,658.4,1.12403225]
[1751303993355,0.26422587,659.09,658.41,1.12403225]
[1751303993556,0.26422587,659.09,658.42,1.12403225]
[1751303993855,0.26422587,659.09,658.43,1.12403225]
[1751303994052,0.26422587,659.09,658.44,1.12403225]
[1751303994252,0.26422587,659.09,658.45,1.12403225]
[1751303994455,0.26422587,659.09,658.46,1.12403225]
[1751303994652,0.26422587,659.09,658.47,1.12403225]
[1751303994853,0.26422587,659.09,658.39,1.878]
[1751303995057,0.26422587,659.09,658.4,1.12442332]
[1751303995253,0.26422587,659.09,658.41,1.12442332]
[1751303995457,0.26422587,659.09,658.42,1.12442332]
[1751303995656,0.26422587,659.09,658.43,1.12442332]
[1751303995856,0.26422587,659.09,658.39,1.878]
[1751303996059,0.26422587,659.09,658.4,1.12443034]
[1751303996260,0.26422587,659.09,658.41,1.12443034]
[1751303996559,0.26422587,659.09,658.42,1.12443034]
[1751303996760,0.26422587,659.09,658.43,1.12443034]
[1751303997058,0.26422587,659.09,658.44,1.12443034]
[1751303997259,0.26422587,659.09,658.39,1.878]
[1751303997462,0.26422587,659.09,658.4,1.12457027]
[1751303997660,0.26422587,659.09,658.41,1.12457027]
[1751303997858,0.26422587,659.09,658.42,1.12457027]
[1751303998157,0.26422587,659.09,658.43,1.12457027]
[1751303998358,0.26422587,659.09,658.44,1.12457027]
[1751303998661,0.26422587,659.09,658.39,1.878]
[1751303998861,0.26422587,659.09,658.4,1.12464927]
[1751303999159,0.26422587,659.09,658.41,1.12464927]
[1751303999361,0.26422587,659.09,658.42,1.12464927]
[1751303999560,0.26422587,659.09,658.43,1.12464927]
[1751303999761,0.26422587,659.09,658.39,1.878]
[1751304000057,0.26422587,659.09,658.4,1.12464501]
[1751304000257,0.26422587,659.09,658.41,1.12464501]
[1751304000457,0.26422587,659.09,658.42,1.12464501]
[1751304000661,0.26422587,659.09,658.43,1.12464501]
[1751304000862,0.26422587,659.09,658.39,1.878]
[1751304001063,0.26422587,659.09,658.4,1.12469279]
[1751304001359,0.26422587,659.09,658.41,1.12469279]
[1751304001560,0.26422587,659.09,658.42,1.12469279]
[1751304001762,0.26422587,659.09,658.43,1.12469279]
[1751304001961,0.26422587,659.09,658.39,1.878]
[1751304002163,0.26422587,659.09,658.4,1.12480224]
[1751304002361,0.26422587,659.09,658.41,1.12480224]
[1751304002561,0.26422587,659.09,658.42,1.12480224]
[1751304002761,0.26422587,659.09,658.43,1.12480224]
[1751304003062,0.26422587,659.09,658.44,1.12480224]
[1751304003263,0.26422587,659.09,658.39,1.878]
[1751304003466,0.26422587,659.09,658.4,1.125118]
[1751304003766,0.26422587,659.09,658.41,1.125118]
[1751304004066,0.26422587,659.09,658.42,1.125118]
[1751304004364,0.26422587,659.09,658.43,1.125118]
[1751304004563,0.26422587,659.09,658.44,1.125118]
[1751304004865,0.26422587,659.09,658.39,1.878]
[1751304005165,0.26422587,659.09,658.4,1.12518377]
[1751304005363,0.26422587,659.09,658.41,1.12518377]
[1751304005566,0.26422587,659.09,658.42,1.12518377]
[1751304005863,0.26422587,659.09,658.43,1.12518377]
[1751304006161,0.26422587,659.09,658.44,1.12518377]
[1751304006360,0.26422587,659.09,658.45,1.12518377]
[1751304006562,0.26422587,659.09,658.39,1.878]
[1751304006762,0.26422587,659.09,658.4,1.12520226]
[1751304006961,0.26422587,659.09,658.41,1.12520226]
[1751304007161,0.26422587,659.09,658.42,1.12520226]
[1751304007361,0.26422587,659.09,658.43,1.12520226]
[1751304007565,0.26422587,659.09,658.44,1.12520226]
[1751304007763,0.26422587,659.09,658.45,1.12520226]
[1751304007964,0.26422587,659.09,658.46,1.12520226]
[1751304008261,0.26422587,659.09,658.39,1.878]
[1751304008463,0.26422587,659.09,658.4,1.12513003]
[1751304008663,0.26422587,659.09,658.41,1.12513003]
[1751304008866,0.26422587,659.09,658.42,1.12513003]
[1751304009070,0.26422587,659.09,658.43,1.12513003]
[1751304009263,0.26422587,659.09,658.44,1.12513003]
[1751304009464,0.26422587,659.09,658.39,1.878]
[1751304009664,0.26422587,659.09,658.4,1.12514011]
[1751304009865,0.26422587,659.09,658.41,1.12514011]
[1751304010065,0.26422587,659.09,658.42,1.12514011]
[1751304010267,0.26422587,659.09,658.43,1.12514011]
[1751304010463,0.26422587,659.09,658.44,1.12512683]
[1751304010665,0.26422587,659.09,658.39,1.878]
[1751304010967,0.26422587,659.09,658.4,1.12512683]
[1751304011165,0.26422587,659.09,658.41,1.12512683]
[1751304011369,0.26422587,659.09,658.42,1.12512683]
[1751304011669,0.26422587,659.09,658.43,1.12512683]
[1751304011869,0.26422587,659.09,658.44,1.12512683]
[1751304012165,0.26422587,659.09,658.39,1.878]
[1751304012370,0.26422587,659.09,658.4,1.12514728]
[1751304012569,0.26422587,659.09,658.41,1.12514728]
[1751304012767,0.26422587,659.09,658.42,1.12514728]
[1751304012971,0.26422587,659.09,658.43,1.12514728]
[1751304013166,0.26422587,659.09,658.44,1.12514728]
[1751304013369,0.26422587,659.09,658.39,1.878]
[1751304013568,0.26422587,659.09,658.4,1.12516692]
[1751304013767,0.26422587,659.09,658.41,1.12516692]
[1751304014070,0.26422587,659.09,658.42,1.12516692]
[1751304014274,0.26422587,659.09,658.39,1.878]
[1751304014474,0.26422587,659.09,658.4,1.12530471]
[1751304014670,0.26422587,659.09,658.41,1.12530471]
[1751304014870,0.26422587,659.09,658.42,1.12530471]
[1751304015070,0.26422587,659.09,658.39,1.878]
[1751304015071,0.26422587,659.09,658.43,1.12530471]
[1751304015271,0.26422587,659.09,658.44,1.12530471]
[1751304015471,0.26422587,659.09,658.45,1.12530471]
[1751304015773,0.26422587,659.09,658.39,1.878]
[1751304016073,0.26422587,659.09,658.4,1.1251345]
[1751304016271,0.26422587,659.09,658.41,1.1251345]
[1751304016473,0.26422587,659.09,658.42,1.1251345]
[1751304016673,0.26422587,659.09,658.43,1.1251345]
[1751304016874,0.26422587,659.09,658.44,1.1251345]
[1751304017075,0.26422587,659.09,658.45,1.1251345]
[1751304017274,0.26422587,659.09,658.39,1.878]
[1751304017470,0.26422587,659.09,658.4,1.12513677]
[1751304017672,0.26422587,659.09,658.41,1.12513677]
[1751304017871,0.26422587,659.09,658.42,1.12513677]
[1751304018075,0.26422587,659.09,658.43,1.12513677]
[1751304018276,0.26422587,659.09,658.44,1.12513677]
[1751304018577,0.26422587,659.09,658.45,1.12513677]
[1751304018774,0.26422587,659.09,658.46,1.12513677]
[1751304019076,0.26422587,659.09,658.39,1.878]
[1751304019278,0.26422587,659.09,658.4,1.1250107]
[1751304019475,0.26422587,659.09,658.41,1.1250107]
[1751304019674,0.26422587,659.09,658.42,1.1250107]
[1751304019972,0.26422587,659.09,658.43,1.1250107]
[1751304020176,0.26422587,659.09,658.44,1.1250107]
[1751304020377,0.26422587,659.09,658.45,1.1250107]
[1751304020575,0.26422587,659.09,658.39,1.878]
[1751304020775,0.26422587,659.09,658.4,1.12506921]
[1751304020975,0.26422587,659.09,658.41,1.12506921]
[1751304021278,0.26422587,659.09,658.42,1.12506921]
[1751304021478,0.26422587,659.09,658.43,1.12506921]
[1751304021678,0.26422587,659.09,658.44,1.12506921]
[1751304021879,0.26422587,659.09,658.39,1.878]
[1751304022076,0.26422587,659.09,658.4,1.12511044]
[1751304022379,0.26422587,659.09,658.41,1.12511044]
[1751304022579,0.26422587,659.09,658.42,1.12511044]
[1751304022782,0.26422587,659.09,658.43,1.12511044]
[1751304022977,0.26422587,659.09,658.44,1.12511044]
[1751304023178,0.26422587,659.09,658.45,1.1250898]
[1751304023378,0.26422587,659.09,658.39,1.878]
[1751304023586,0.26422587,659.09,658.4,1.12509116]
[1751304023784,0.26422587,659.09,658.41,1.12509116]
[1751304024078,0.26422587,659.09,658.42,1.12509116]
[1751304024277,0.26422587,659.09,658.43,1.12509116]
[1751304024482,0.26422587,659.09,658.44,1.12509116]
[1751304024683,0.26422587,659.09,658.39,1.878]
[1751304024884,0.26422587,659.09,658.4,1.12515837]
[1751304025184,0.26422587,659.09,658.41,1.12515837]
[1751304025386,0.26422587,659.09,658.42,1.12515837]
[1751304025584,0.26422587,659.09,658.43,1.12515837]
[1751304025783,0.26422587,659.09,658.39,1.878]
[1751304025981,0.26422587,659.09,658.4,1.12524386]
[1751304026185,0.26422587,659.09,658.41,1.12524386]
[1751304026387,0.26422587,659.09,658.42,1.12524386]
[1751304026685,0.26422587,659.09,658.43,1.12524386]
[1751304026882,0.26422587,659.09,658.44,1.12524386]
[1751304027085,0.26422587,659.09,658.39,1.878]
[1751304027386,0.26422587,659.09,658.4,1.12549114]
[1751304027585,0.26422587,659.09,658.41,1.12549114]
[1751304027882,0.26422587,659.09,658.42,1.12549114]
[1751304028086,0.26422587,659.09,658.43,1.12549114]
[1751304028383,0.26422587,659.09,658.44,1.12549114]
[1751304028681,0.26422587,659.09,658.39,1.878]
[1751304028886,0.26422587,659.09,658.4,1.12551541]
[1751304029086,0.26422587,659.09,658.41,1.12551541]
[1751304029386,0.26422587,659.09,658.39,1.878]
[1751304031888,0.26422587,659.09,658.26,2.618]
[1751304032089,0.26422587,659.09,658.27,1.12611431]
[1751304032290,0.26422587,659.09,658.28,1.12611431]
[1751304032490,0.26422587,659.09,658.29,1.12611431]
[1751304032789,0.26422587,659.09,658.3,1.12611431]
[1751304032985,0.26422587,659.09,658.31,1.12611431]
[1751304033184,0.26422587,659.09,658.32,1.12611431]
[1751304033386,0.26422587,659.09,658.33,1.12611431]
[1751304033589,0.26422587,659.09,658.34,1.12611431]
[1751304033788,0.26422587,659.09,658.35,1.12611431]
[1751304033986,0.26422587,659.09,658.36,1.12611431]
[1751304034189,0.26422587,659.09,658.37,1.12611431]
[1751304034386,0.26422587,659.09,658.37,2.689]
[1751304039494,0.26422587,659.09,658.38,1.12661752]
[1751304039797,0.26422587,659.09,658.39,1.12661752]
[1751304039992,0.26422587,659.09,658.4,1.12661752]
[1751304040195,0.26422587,659.09,658.41,1.12661752]
[1751304040391,0.26422587,659.09,658.42,1.12661752]
[1751304040599,0.26422587,659.09,658.37,2.689]
[1751304040795,0.26422587,659.09,658.38,1.12662796]
[1751304040993,0.26422587,659.09,658.39,1.12662796]
[1751304041196,0.26422587,659.09,658.4,1.12662796]
[1751304041396,0.26422587,659.09,658.41,1.12662796]
[1751304041595,0.26422587,659.09,658.42,1.12662796]
[1751304041800,0.26422587,659.09,658.37,2.689]
[1751304042002,0.26422587,659.09,658.38,1.12672768]
[1751304042201,0.26422587,659.09,658.39,1.12672768]
[1751304042398,0.26422587,659.09,658.4,1.12672768]
[1751304042600,0.26422587,659.09,658.37,2.689]
[1751304051408,0.26422587,659.09,658.26,2.618]
[1751304051609,0.26422587,659.09,658.27,1.12564151]
[1751304051810,0.26422587,659.09,658.26,2.618]
[1751304052105,0.26422587,659.09,658.27,1.1256253]
[1751304052310,0.26422587,659.09,658.26,2.618]
[1751304052510,0.26422587,659.09,658.27,1.12560625]
[1751304052809,0.26422587,659.09,658.26,2.618]
[1751304053009,0.26422587,659.09,658.27,1.1253566]
[1751304053306,0.26422587,659.09,658.28,1.1253566]
[1751304053606,0.26422587,659.09,658.29,1.1253566]
[1751304053810,0.26422587,659.09,658.3,1.1253566]
[1751304054110,0.26422587,659.09,658.31,1.1253566]
[1751304054305,0.26422587,659.09,658.32,1.1253566]
[1751304054506,0.26422587,659.09,658.26,2.618]
[1751304054713,0.26422587,659.09,658.27,1.12538526]
[1751304054906,0.26422587,659.09,658.28,1.12538526]
[1751304055207,0.26422587,659.09,658.29,1.12538526]
[1751304055511,0.26422587,659.09,658.3,1.12538526]
[1751304055707,0.26422587,659.09,658.31,1.12538526]
[1751304055912,0.26422587,659.09,658.32,1.12538526]
[1751304056112,0.26422587,659.09,658.28,2.639]
[1751304056309,0.26422587,659.09,658.29,1.12537197]
[1751304056527,0.26422587,659.09,658.3,1.12537197]
[1751304056707,0.26422587,659.09,658.31,1.12537197]
[1751304056908,0.26422587,659.09,658.32,1.12537197]
[1751304057112,0.26422587,659.09,658.28,2.639]
[1751304057409,0.26422587,659.09,658.29,1.12536518]
[1751304057609,0.26422587,659.09,658.3,1.12536518]
[1751304057810,0.26422587,659.09,658.31,1.12536518]
[1751304058012,0.26422587,659.09,658.28,2.639]
[1751304058214,0.26422587,659.09,658.29,1.12536512]
[1751304058412,0.26422587,659.09,658.3,1.12536512]
[1751304058616,0.26422587,659.09,658.31,1.12536512]
[1751304058816,0.26422587,659.09,658.28,2.639]
[1751304059018,0.26422587,659.09,658.29,1.12580673]
[1751304059219,0.26422587,659.09,658.3,1.12580673]
[1751304059414,0.26422587,659.09,658.31,1.12580673]
[1751304059618,0.26422587,659.09,658.32,1.12580673]
[1751304059817,0.26422587,659.09,658.33,1.12580673]
[1751304060018,0.26422587,659.09,658.28,2.639]
[1751304060312,0.26422587,659.09,658.29,1.12570699]
[1751304060513,0.26422587,659.09,658.3,1.12570699]
[1751304060713,0.26422587,659.09,658.31,1.12570699]
[1751304060922,0.26422587,659.09,658.32,1.12570699]
[1751304061125,0.26422587,659.09,658.33,1.12570699]
[1751304061325,0.26422587,659.09,658.34,1.12570699]
[1751304061524,0.26422587,659.09,658.35,1.12570699]
[1751304061824,0.26422587,659.09,658.36,1.12570699]
[1751304062022,0.26422587,659.09,658.37,1.12570699]
[1751304062224,0.26422587,659.09,658.38,1.12570699]
[1751304062422,0.26422587,659.09,658.28,2.639]
[1751304062621,0.26422587,659.09,658.29,1.12517184]
[1751304062824,0.26422587,659.09,658.3,1.12517184]
[1751304063025,0.26422587,659.09,658.31,1.12517184]
[1751304063226,0.26422587,659.09,658.32,1.12517184]
[1751304063421,0.26422587,659.09,658.33,1.12517184]
[1751304063626,0.26422587,659.09,658.34,1.12517184]
[1751304063823,0.26422587,659.09,658.35,1.12517184]
[1751304064025,0.26422587,659.09,658.36,1.12517184]
[1751304064226,0.26422587,659.09,658.37,1.12517184]
[1751304064424,0.26422587,659.09,658.38,1.12517184]
[1751304064629,0.26422587,659.09,658.28,2.639]
[1751304064927,0.26422587,659.09,658.29,1.12516334]
[1751304065129,0.26422587,659.09,658.3,1.12516334]
[1751304065327,0.26422587,659.09,658.31,1.12516334]
[1751304065530,0.26422587,659.09,658.32,1.12516334]
[1751304065728,0.26422587,659.09,658.33,1.12516334]
[1751304065927,0.26422587,659.09,658.34,1.12516334]
[1751304066227,0.26422587,659.09,658.35,1.12516334]
[1751304066431,0.26422587,659.09,658.36,1.12516334]
[1751304066628,0.26422587,659.09,658.37,1.12516334]
[1751304066828,0.26422587,659.09,658.38,1.12516334]
[1751304067126,0.26422587,659.09,658.28,2.639]
[1751304067329,0.26422587,659.09,658.29,1.12513545]
[1751304067530,0.26422587,659.09,658.3,1.12513545]
[1751304067728,0.26422587,659.09,658.31,1.12513545]
[1751304067929,0.26422587,659.09,658.32,1.12513545]
[1751304068130,0.26422587,659.09,658.33,1.12513545]
[1751304068328,0.26422587,659.09,658.34,1.12513545]
[1751304068529,0.26422587,659.09,658.35,1.12513545]
[1751304068729,0.26422587,659.09,658.36,1.12513545]
[1751304068930,0.26422587,659.09,658.37,1.12513545]
[1751304069133,0.26422587,659.09,658.38,1.12513545]
[1751304069329,0.26422587,659.09,658.39,1.12513545]
[1751304069629,0.26422587,659.09,658.4,1.12513545]
[1751304069827,0.26422587,659.09,658.41,1.12513545]
[1751304070033,0.26422587,659.09,658.42,1.12513545]
[1751304070233,0.26422587,659.09,658.43,1.12513545]
[1751304070533,0.26422587,659.09,658.44,1.12513545]
[1751304070732,0.26422587,659.09,658.45,1.12513545]
[1751304070930,0.26422587,659.09,658.46,1.12513545]
[1751304071129,0.26422587,659.09,658.47,1.12513545]
[1751304071330,0.26422587,659.09,658.48,1.12513545]
[1751304071629,0.26422587,659.09,658.28,2.639]
[1751304071833,0.26422587,659.09,658.29,1.12482236]
[1751304072033,0.26422587,659.09,658.3,1.12482236]
[1751304072330,0.26422587,659.09,658.31,1.12482236]
[1751304072528,0.26422587,659.09,658.32,1.12482236]
[1751304072732,0.26422587,659.09,658.33,1.12482236]
[1751304072930,0.26422587,659.09,658.34,1.12482236]
[1751304073228,0.26422587,659.09,658.35,1.12482236]
[1751304073529,0.26422587,659.09,658.36,1.12482236]
[1751304073830,0.26422587,659.09,658.37,1.12482236]
[1751304074033,0.26422587,659.09,658.38,1.12482236]
[1751304074330,0.26422587,659.09,658.39,1.12482236]
[1751304074533,0.26422587,659.09,658.4,1.12482236]
[1751304074734,0.26422587,659.09,658.41,1.12482236]
[1751304075033,0.26422587,659.09,658.42,1.12482236]
[1751304075231,0.26422587,659.09,658.43,1.12482236]
[1751304075432,0.26422587,659.09,658.44,1.12482236]
[1751304075730,0.26422587,659.09,658.45,1.12482236]
[1751304075932,0.26422587,659.09,658.46,1.12482236]
[1751304076230,0.26422587,659.09,658.47,1.12482236]
[1751304076433,0.26422587,659.09,658.48,1.12482236]
[1751304076733,0.26422587,659.09,658.28,2.639]
[1751304076933,0.26422587,659.09,658.29,1.12465876]
[1751304077231,0.26422587,659.09,658.3,1.12465876]
[1751304077430,0.26422587,659.09,658.31,1.12465876]
[1751304077733,0.26422587,659.09,658.32,1.12465876]
[1751304077932,0.26422587,659.09,658.33,1.12465876]
[1751304078134,0.26422587,659.09,658.34,1.12465876]
[1751304078328,0.26422587,659.09,658.35,1.12465876]
[1751304078528,0.26422587,659.09,658.36,1.12465876]
[1751304078729,0.26422587,659.09,658.37,1.12465876]
[1751304078934,0.26422587,659.09,658.38,1.12465876]
[1751304079131,0.26422587,659.09,658.39,1.12465876]
[1751304079430,0.26422587,659.09,658.4,1.12465876]
[1751304079631,0.26422587,659.09,658.41,1.12465876]
[1751304079835,0.26422587,659.09,658.42,1.12465876]
[1751304080033,0.26422587,659.09,658.43,1.12465876]
[1751304080233,0.26422587,659.09,658.44,1.12465876]
[1751304080439,0.26422587,659.09,658.28,2.639]
[1751304080639,0.26422587,659.09,658.29,1.12456304]
[1751304080840,0.26422587,659.09,658.3,1.12456304]
[1751304081038,0.26422587,659.09,658.31,1.12456304]
[1751304081338,0.26422587,659.09,658.32,1.12456304]
[1751304081540,0.26422587,659.09,658.33,1.12456304]
[1751304081835,0.26422587,659.09,658.34,1.12456304]
[1751304082037,0.26422587,659.09,658.35,1.12456304]
[1751304082234,0.26422587,659.09,658.36,1.12456304]
[1751304082438,0.26422587,659.09,658.37,1.12456304]
[1751304082640,0.26422587,659.09,658.38,1.12456304]
[1751304082840,0.26422587,659.09,658.39,1.12456304]
[1751304083136,0.26422587,659.09,658.4,1.12456304]
[1751304083336,0.26422587,659.09,658.41,1.12456304]
[1751304083537,0.26422587,659.09,658.42,1.12456304]
[1751304083740,0.26422587,659.09,658.43,1.12456304]
[1751304083941,0.26422587,659.09,658.44,1.12456304]
[1751304084139,0.26422587,659.09,658.28,2.639]
[1751304084439,0.26422587,659.09,658.29,1.124464]
[1751304084638,0.26422587,659.09,658.3,1.124464]
[1751304084944,0.26422587,659.09,658.31,1.124464]
[1751304085138,0.26422587,659.09,658.32,1.124464]
[1751304085341,0.26422587,659.09,658.33,1.124464]
[1751304085538,0.26422587,659.09,658.34,1.124464]
[1751304085741,0.26422587,659.09,658.35,1.124464]
[1751304085945,0.26422587,659.09,658.36,1.124464]
[1751304086144,0.26422587,659.09,658.37,1.124464]
[1751304086345,0.26422587,659.09,658.38,1.124464]
[1751304086542,0.26422587,659.09,658.39,1.124464]
[1751304086741,0.26422587,659.09,658.4,1.124464]
[1751304087045,0.26422587,659.09,658.41,1.124464]
[1751304087246,0.26422587,659.09,658.26,2.618]
[1751304087247,0.26422587,659.09,658.42,1.124464]
[1751304087447,0.26422587,659.09,658.43,1.124464]
[1751304087647,0.26422587,659.09,658.44,1.124464]
[1751304087847,0.26422587,659.09,658.26,2.618]
[1751304088147,0.26422587,659.09,658.27,1.12438241]
[1751304088347,0.26422587,659.09,658.28,1.12438241]
[1751304088544,0.26422587,659.09,658.29,1.12438241]
[1751304088749,0.26422587,659.09,658.3,1.12438241]
[1751304088947,0.26422587,659.09,658.31,1.12438241]
[1751304089148,0.26422587,659.09,658.32,1.12438241]
[1751304089344,0.26422587,659.09,658.33,1.12438241]
[1751304089547,0.26422587,659.09,658.34,1.12438241]
[1751304089750,0.26422587,659.09,658.35,1.12438241]
[1751304090047,0.26422587,659.09,658.36,1.12438241]
[1751304090347,0.26422587,659.09,658.37,3.56638241]
[1751304090545,0.26422587,659.09,658.38,1.12438241]
[1751304090745,0.26422587,659.09,658.39,1.12438241]
[1751304090952,0.26422587,659.09,658.4,1.12438241]
[1751304091150,0.26422587,659.09,658.41,1.12438241]
[1751304091351,0.26422587,659.09,658.42,1.12438241]
[1751304091651,0.26422587,659.09,658.43,1.12438241]
[1751304091947,0.26422587,659.09,658.44,1.12438241]
[1751304092147,0.26422587,659.09,658.45,1.12438241]
[1751304092347,0.26422587,659.09,658.46,1.12438241]
[1751304092551,0.26422587,659.09,658.47,1.12438241]
[1751304092752,0.26422587,659.09,658.48,1.12438241]
[1751304092948,0.26422587,659.09,658.49,1.12438241]
[1751304093253,0.26422587,659.09,658.37,2.442]
[1751304093452,0.26422587,659.09,658.38,1.12407316]
[1751304093650,0.26422587,659.09,658.39,1.12407316]
[1751304093850,0.26422587,659.09,658.4,1.12407316]
[1751304094049,0.26422587,659.09,658.41,1.12407316]
[1751304094251,0.26422587,659.09,658.42,1.12407316]
[1751304094453,0.26422587,659.09,658.43,1.12407316]
[1751304094651,0.26422587,659.09,658.44,1.12407316]
[1751304094851,0.26422587,659.09,658.45,1.12407316]
[1751304095054,0.26422587,659.09,658.46,1.12407316]
[1751304095247,0.26422587,659.09,658.47,1.12407316]
[1751304095450,0.26422587,659.09,658.48,1.12407316]
[1751304095653,0.26422587,659.09,658.37,2.442]
[1751304095654,0.26422587,659.09,658.49,1.12407316]
[1751304095849,0.26422587,659.09,658.5,1.12407316]
[1751304096150,0.26422587,659.09,658.37,2.442]
[1751304096349,0.26422587,659.09,658.38,1.12387895]
[1751304096549,0.26422587,659.09,658.39,1.12387895]
[1751304096753,0.26422587,659.09,658.4,1.12387895]
[1751304097052,0.26422587,659.09,658.41,1.12387895]
[1751304097250,0.26422587,659.09,658.42,1.12387895]
[1751304097450,0.26422587,659.09,658.43,1.12387895]
[1751304097755,0.26422587,659.09,658.44,1.12387895]
[1751304097952,0.26422587,659.09,658.45,1.12387895]
[1751304098153,0.26422587,659.09,658.46,1.12387895]
[1751304098352,0.26422587,659.09,658.47,1.12387895]
[1751304098651,0.26422587,659.09,658.48,1.12387895]
[1751304098856,0.26422587,659.09,658.49,1.12387895]
[1751304099054,0.26422587,659.09,658.5,1.12387895]
[1751304099252,0.26422587,659.09,658.51,1.12387895]
[1751304099457,0.26422587,659.09,658.37,2.442]
[1751304099657,0.26422587,659.09,658.38,1.12299715]
[1751304099857,0.26422587,659.09,658.39,1.12299715]
[1751304100156,0.26422587,659.09,658.4,1.12299715]
[1751304100357,0.26422587,659.09,658.41,1.12299715]
[1751304100557,0.26422587,659.09,658.42,1.12299715]
[1751304100757,0.26422587,659.09,658.43,1.12299715]
[1751304100958,0.26422587,659.09,658.44,1.12299715]
[1751304101158,0.26422587,659.09,658.45,1.12299715]
[1751304101457,0.26422587,659.09,658.46,1.12299715]
[1751304101654,0.26422587,659.09,658.47,1.12299715]
[1751304101856,0.26422587,659.09,658.48,1.12299715]
[1751304102055,0.26422587,659.09,658.49,1.12299715]
[1751304102259,0.26422587,659.09,658.5,1.12299715]
[1751304102455,0.26422587,659.09,658.51,1.12299715]
[1751304102659,0.26422587,659.09,658.52,1.12299715]
[1751304102859,0.26422587,659.09,658.37,2.442]
[1751304103060,0.26422587,659.09,658.38,1.12262923]
[1751304103256,0.26422587,659.09,658.39,1.12262923]
[1751304103456,0.26422587,659.09,658.4,1.12262923]
[1751304103661,0.26422587,659.09,658.41,1.12262923]
[1751304103862,0.26422587,659.09,658.42,1.12262923]
[1751304104061,0.26422587,659.09,658.43,1.12262923]
[1751304104257,0.26422587,659.09,658.44,1.12262923]
[1751304104460,0.26422587,659.09,658.45,1.12262923]
[1751304104662,0.26422587,659.09,658.46,1.12262923]
[1751304104860,0.26422587,659.09,658.47,1.12262923]
[1751304105062,0.26422587,659.09,658.48,1.12262923]
[1751304105260,0.26422587,659.09,658.49,1.12262923]
[1751304105563,0.26422587,659.09,658.5,1.12262923]
[1751304105858,0.26422587,659.09,658.51,1.12262923]
[1751304106058,0.26422587,659.09,658.52,1.12262923]
[1751304106260,0.26422587,659.09,658.53,1.12262923]
[1751304106562,0.26422587,659.09,658.54,1.12300858]
[1751304106764,0.26422587,659.09,658.55,1.12300858]
[1751304106960,0.26422587,659.09,658.37,2.442]
[1751304107162,0.26422587,659.09,658.38,1.1229623]
[1751304107365,0.26422587,659.09,658.39,1.1229623]
[1751304107665,0.26422587,659.09,658.4,1.1229623]
[1751304107862,0.26422587,659.09,658.41,1.1229623]
[1751304108165,0.26422587,659.09,658.42,1.1229623]
[1751304108366,0.26422587,659.09,658.43,1.1229623]
[1751304108666,0.26422587,659.09,658.44,1.1229623]
[1751304108862,0.26422587,659.09,658.45,1.1229623]
[1751304109063,0.26422587,659.09,658.46,1.1229623]
[1751304109263,0.26422587,659.09,658.47,1.1229623]
[1751304109470,0.26422587,659.09,658.48,1.1229623]
[1751304109668,0.26422587,659.09,658.49,1.1229623]
[1751304109967,0.26422587,659.09,658.5,1.1229623]
[1751304110167,0.26422587,659.09,658.51,1.1229623]
[1751304110368,0.26422587,659.09,658.52,1.1229623]
[1751304110564,0.26422587,659.09,658.53,1.1229623]
[1751304110763,0.26422587,659.09,658.54,1.1229623]
[1751304111068,0.26422587,659.09,658.55,1.1229623]